bitfinex-derivatives/quotes_BNBF0:USTF0_20250521
["timestamp","ask_amount","ask_price","bid_price","bid_amount"]
[1747848580675,1.00067747,664.81,662.69,0.73546956]
[1747848580876,1.00067747,664.8,662.69,0.73546956]
[1747848581078,1.00067747,664.8,662.7,0.26205115]
[1747848582473,2.10812593,664.79,662.7,0.26205115]
[1747848583778,1.00067747,664.78,662.7,0.26205115]
[1747848585281,1.00067747,664.77,662.7,0.26205115]
[1747848585982,0.42190409,664.76,662.7,0.26205115]
[1747848586282,0.42190409,664.75,662.7,0.26205115]
[1747848586481,0.42190409,664.74,662.7,0.26205115]
[1747848586678,1.00067747,664.77,662.69,0.73546956]
[1747848586883,1.00067747,664.73,662.69,0.73546956]
[1747848587181,0.42138554,664.72,662.69,0.73546956]
[1747848587684,0.42138554,664.72,662.7,0.26214985]
[1747848588784,1.10744846,664.63,662.7,0.26214985]
[1747848589787,1.10744846,664.63,661.35,0.73546956]
[1747848590288,1.00067747,664.62,661.35,0.73546956]
[1747848590783,1.00067747,664.62,661.36,0.26225061]
[1747848592284,1.00067747,664.61,661.36,0.26225061]
[1747848593387,1.00067747,664.6,661.36,0.26225061]
[1747848594987,1.10744846,664.91,661.36,0.26225061]
[1747848595186,1.10744846,665.01,661.36,0.26225061]
[1747848595583,1.10744846,665.01,661.35,0.73546956]
[1747848596189,0.99587349,665.0,661.35,0.73546956]
[1747848596788,0.99587349,665.0,661.36,0.26220417]
[1747848596990,0.41943474,664.99,661.36,0.26220417]
[1747848597288,0.99587349,665.0,661.36,0.73170698]
[1747848597686,1.45048106,664.95,661.36,0.73170698]
[1747848597881,1.10744846,664.81,661.36,0.73170698]
[1747848598688,1.10744846,664.81,661.36,0.46950281]
[1747848598988,1.10744846,664.81,661.36,0.73171291]
[1747848599185,0.99587349,664.8,661.36,0.73171291]
[1747848599386,0.99587349,664.8,661.58,0.46950281]
[1747848602188,0.99587349,664.79,661.58,0.46950281]
[1747848602488,0.41909684,664.78,661.58,0.46950281]
[1747848602682,0.41909684,664.77,661.58,0.46950281]
[1747848602889,0.41909684,664.76,661.58,0.46950281]
[1747848603192,0.99587349,664.79,661.58,0.46950281]
[1747848603588,1.10744846,664.69,661.58,0.46950281]
[1747848603788,1.10744846,664.69,662.23,0.46950281]
[1747848605188,0.99587349,664.68,662.23,0.46950281]
[1747848605582,0.99587349,664.68,661.76,0.2621943]
[1747848607690,0.99587349,664.68,661.46,0.46950281]
[1747848607885,0.99587349,664.83,661.46,0.46950281]
[1747848608082,0.99587349,664.83,661.76,0.26220714]
[1747848608284,0.99587349,664.83,661.46,0.46950281]
[1747848609190,0.99587349,664.83,661.47,0.26217158]
[1747848610492,0.99587349,665.09,661.47,0.26217158]
[1747848610692,0.99587349,665.09,662.2,0.46950281]
[1747848611394,0.41885869,665.08,662.2,0.46950281]
[1747848611592,0.41885869,665.07,662.2,0.46950281]
[1747848611790,0.41885869,665.06,662.2,0.46950281]
[1747848611988,0.41885869,665.05,662.2,0.46950281]
[1747848612293,1.10744846,664.94,662.2,0.46950281]
[1747848612993,1.10744846,664.94,661.47,0.26219726]
[1747848613494,0.99587349,664.93,661.47,0.26219726]
[1747848614900,0.41921507,664.92,661.47,0.26219726]
[1747848615098,0.41918934,664.91,661.47,0.26219726]
[1747848615295,0.41918934,664.9,662.21,0.46950281]
[1747848615494,1.10744846,664.86,662.21,0.46950281]
[1747848615697,0.41918934,664.85,662.21,0.46950281]
[1747848617001,0.99587349,664.84,662.21,0.46950281]
[1747848617208,0.41918934,664.83,662.21,0.46950281]
[1747848617697,0.41961407,664.82,662.21,0.46950281]
[1747848617894,0.41961407,664.81,662.21,0.46950281]
[1747848618100,0.41961407,664.8,662.21,0.46950281]
[1747848618305,0.41961407,664.79,662.21,0.46950281]
[1747848618496,0.41961407,664.78,662.21,0.46950281]
[1747848618702,1.10744846,664.58,662.21,0.46950281]
[1747848619200,1.10744846,664.58,661.77,0.26224073]
[1747848619700,1.10744846,664.58,661.68,0.46950281]
[1747848620207,0.99587349,664.57,661.68,0.46950281]
[1747848620800,0.99587349,664.57,661.69,0.26233265]
[1747848621413,0.99587349,664.56,661.69,0.26233265]
[1747848621606,1.10744846,664.55,661.69,0.26233265]
[1747848622409,0.99587349,664.54,661.69,0.26233265]
[1747848622709,0.99587349,664.54,661.55,0.46950281]
[1747848623009,0.99587349,664.54,661.56,0.26234155]
[1747848623511,1.10744846,664.45,661.56,0.26234155]
[1747848624713,0.99587349,664.44,661.56,0.26234155]
[1747848625815,0.99587349,664.44,661.4,0.46950281]
[1747848626109,2.10332195,664.43,661.4,0.46950281]
[1747848626314,2.10332195,664.43,660.23,0.95856825]
[1747848626315,2.10332195,664.43,661.57,0.46950281]
[1747848627814,0.99587349,664.42,661.57,0.46950281]
[1747848628718,0.99587349,664.42,662.4,0.46950281]
[1747848630014,1.10744846,664.36,662.4,0.46950281]
[1747848630919,1.10744846,664.36,662.09,0.46950281]
[1747848631421,0.99587349,664.35,662.09,0.46950281]
[1747848631720,0.42231162,664.34,662.09,0.46950281]
[1747848631915,0.99587349,664.35,662.09,0.46950281]
[1747848632121,0.42226856,664.34,662.09,0.46950281]
[1747848632520,0.99587349,664.35,662.09,0.46950281]
[1747848632719,0.42249825,664.34,662.09,0.46950281]
[1747848632920,1.10744846,664.24,662.09,0.46950281]
[1747848633223,0.42283107,664.23,661.8,0.46950281]
[1747848633416,0.42283107,664.22,661.8,0.46950281]
[1747848633619,0.42283107,664.21,661.8,0.46950281]
[1747848633814,0.42283107,664.2,661.8,0.46950281]
[1747848634020,0.42283107,664.19,661.8,0.46950281]
[1747848634317,0.42283107,664.18,661.8,0.46950281]
[1747848634521,0.42283107,664.17,661.8,0.46950281]
[1747848634720,0.42283107,664.16,661.8,0.46950281]
[1747848634920,0.42283107,664.15,661.8,0.46950281]
[1747848635123,0.42283107,664.14,661.8,0.46950281]
[1747848635421,0.99587349,664.2,661.8,0.46950281]
[1747848635625,0.422115,664.19,661.8,0.46950281]
[1747848635821,0.422115,664.18,661.8,0.46950281]
[1747848636023,0.422115,664.17,661.8,0.46950281]
[1747848636224,0.422115,664.16,661.78,0.26241771]
[1747848636425,0.422115,664.15,661.78,0.26241771]
[1747848636625,0.422115,664.14,661.78,0.26241771]
[1747848636824,0.422115,664.13,661.78,0.26241771]
[1747848637023,0.99587349,664.18,661.78,0.26241771]
[1747848637240,0.42204755,664.17,661.78,0.26241771]
[1747848637440,0.99587349,664.18,661.78,0.26241771]
[1747848637620,0.99587349,664.18,661.44,0.73546956]
[1747848638020,0.99587349,664.18,661.78,0.26239595]
[1747848638221,1.10744846,664.19,661.44,0.73546956]
[1747848639029,1.10744846,664.19,661.45,0.26239792]
[1747848639523,0.99587349,664.18,661.45,0.26239792]
[1747848640527,1.10744846,664.23,661.45,0.26239792]
[1747848640828,1.10744846,664.23,661.44,0.73546956]
[1747848641024,1.10744846,664.23,661.96,0.46950281]
[1747848642131,0.99587349,664.22,661.96,0.46950281]
[1747848642830,0.42303833,664.21,661.96,0.46950281]
[1747848643030,0.42303833,664.2,661.96,0.46950281]
[1747848643330,0.42303833,664.19,661.45,0.26236726]
[1747848643531,0.42311111,664.18,661.45,0.26236726]
[1747848643731,0.99587349,664.22,661.45,0.26236726]
[1747848643933,0.99587349,664.17,661.45,0.26236726]
[1747848644236,0.42323544,664.16,661.45,0.26236726]
[1747848644429,0.99587349,664.17,661.45,0.26236726]
[1747848645531,1.10744846,664.22,661.45,0.26236726]
[1747848647331,0.99587349,664.21,661.45,0.26236726]
[1747848649036,1.10744846,664.82,662.04,0.46950281]
[1747848649435,0.98863096,664.81,662.04,0.46950281]
[1747848649634,0.98863096,664.8,662.04,0.46950281]
[1747848649833,0.99587349,664.8,662.04,0.46950281]
[1747848651437,0.99587349,664.8,662.35,0.46950281]
[1747848651831,1.10744846,665.4,663.21,0.73546956]
[1747848652036,0.98722444,665.39,663.21,0.73546956]
[1747848652235,0.98722444,665.38,663.21,0.73546956]
[1747848652537,0.9872815,665.37,663.21,0.73546956]
[1747848652736,0.9872815,665.36,663.21,0.73546956]
[1747848652938,0.9872815,665.35,663.21,0.73546956]
[1747848653137,0.9872815,665.34,663.21,0.73546956]
[1747848653337,0.9872815,665.33,663.21,0.73546956]
[1747848653533,0.9872815,665.32,663.21,0.73546956]
[1747848653740,0.9872815,665.31,663.21,0.73546956]
[1747848654038,1.10744846,665.2,662.35,0.46950281]
[1747848654247,0.9872815,665.19,662.35,0.46950281]
[1747848654440,0.9872815,665.18,662.34,0.73546956]
[1747848654640,0.9872815,665.17,662.34,0.73546956]
[1747848654836,0.9872815,665.16,662.34,0.73546956]
[1747848655037,1.40974491,665.15,662.34,0.73546956]
[1747848655238,2.4056184,665.14,662.34,0.73546956]
[1747848655440,1.40974491,665.13,662.34,0.73546956]
[1747848655636,1.40974491,665.12,662.34,0.73546956]
[1747848655837,1.40974491,665.11,662.34,0.73546956]
[1747848656039,1.40974491,665.1,662.34,0.73546956]
[1747848656240,0.9872815,665.09,662.34,0.73546956]
[1747848656436,0.9872815,665.08,662.34,0.73546956]
[1747848656637,0.9872815,665.07,662.34,0.73546956]
[1747848656839,0.9872815,665.06,662.34,0.73546956]
[1747848657043,0.9872815,665.05,662.34,0.73546956]
[1747848657242,1.10744846,664.97,662.41,0.73546956]
[1747848657538,0.9872815,664.96,662.41,0.73546956]
[1747848657741,0.9872815,664.95,662.41,0.73546956]
[1747848657938,0.9872815,664.94,662.41,0.73546956]
[1747848658139,0.9872815,664.93,662.41,0.73546956]
[1747848658446,1.40904597,664.92,662.41,0.73546956]
[1747848658644,1.40904597,664.91,662.41,0.73546956]
[1747848658844,0.9872815,664.9,662.41,0.73546956]
[1747848659047,0.9872815,664.89,662.41,0.73546956]
[1747848659247,0.99587349,664.93,662.41,0.73546956]
[1747848659946,0.99587349,664.92,662.41,0.73546956]
[1747848661154,0.98409627,664.91,662.41,0.73546956]
[1747848661455,0.98409627,664.9,662.41,0.73546956]
[1747848661650,0.98409627,664.89,662.41,0.73546956]
[1747848661853,0.98409627,664.88,662.41,0.73546956]
[1747848662053,0.98409627,664.87,662.41,0.73546956]
[1747848662354,0.98409627,664.86,662.41,0.73546956]
[1747848662548,0.98409627,664.85,662.41,0.73546956]
[1747848662750,0.98409627,664.84,662.41,0.73546956]
[1747848662949,0.98409627,664.83,662.41,0.73546956]
[1747848663149,0.98409627,664.82,662.41,0.73546956]
[1747848663349,0.98409627,664.81,662.41,0.73546956]
[1747848663549,0.98409627,664.8,662.41,0.73546956]
[1747848663849,1.10744846,664.75,662.36,0.26208273]
[1747848664048,0.98409627,664.74,662.36,0.26208273]
[1747848664248,0.98409627,664.73,662.36,0.26208273]
[1747848664454,1.97996976,664.72,662.36,0.26208273]
[1747848664657,1.40536859,664.71,662.36,0.26208273]
[1747848664859,0.98409627,664.7,662.23,0.73546956]
[1747848665055,0.98409627,664.69,662.23,0.73546956]
[1747848665259,0.98409627,664.68,662.36,0.26216565]
[1747848665456,0.98409627,664.67,662.23,0.73546956]
[1747848665652,0.99587349,664.72,662.23,0.73546956]
[1747848665858,0.99587349,664.67,662.02,0.73546956]
[1747848666659,0.99587349,664.67,662.03,0.26216565]
[1747848667058,0.99587349,664.83,662.03,0.26216565]
[1747848667558,0.99587349,664.83,662.02,0.73546956]
[1747848668260,1.10744846,664.84,662.02,0.73546956]
[1747848668459,1.10744846,665.2,662.02,0.73546956]
[1747848668656,0.98325647,665.19,662.02,0.73546956]
[1747848668853,1.10744846,665.2,662.02,0.73546956]
[1747848669060,1.10744846,665.2,662.03,0.26204523]
[1747848669355,1.00053679,665.19,662.03,0.26204523]
[1747848671662,1.10744846,665.71,662.03,0.26204523]
[1747848671861,0.98183437,665.7,662.03,0.26204523]
[1747848672063,0.98183437,665.69,662.03,0.26204523]
[1747848672261,0.98183437,665.68,662.03,0.26204523]
[1747848672560,0.98183437,665.67,662.03,0.26204523]
[1747848672765,0.98183437,665.66,662.03,0.26204523]
[1747848672959,0.98183437,665.65,662.53,0.46950281]
[1747848673161,0.98183437,665.64,662.53,0.46950281]
[1747848673357,0.98183437,665.63,662.53,0.46950281]
[1747848673555,0.98183437,665.62,662.53,0.46950281]
[1747848673755,0.98183437,665.61,662.53,0.46950281]
[1747848673959,0.98183437,665.6,662.53,0.46950281]
[1747848674259,0.99636564,665.65,662.53,0.46950281]
[1747848674260,0.98015053,665.59,662.53,0.46950281]
[1747848674463,0.98015053,665.58,662.17,0.46950281]
[1747848674657,0.98015053,665.57,662.17,0.46950281]
[1747848674861,0.98015053,665.56,662.17,0.46950281]
[1747848675064,1.10744846,665.43,662.17,0.46950281]
[1747848675362,0.98015053,665.42,662.17,0.46950281]
[1747848675662,0.98015053,665.41,662.17,0.46950281]
[1747848675863,1.39990759,665.4,662.17,0.46950281]
[1747848676060,1.39990759,665.39,662.17,0.46950281]
[1747848676257,1.39990759,665.38,662.17,0.46950281]
[1747848676467,1.39990759,665.37,662.02,0.73546956]
[1747848676661,1.39990759,665.36,662.02,0.73546956]
[1747848676862,0.98015053,665.35,662.12,0.26207582]
[1747848677057,0.98015053,665.34,662.02,0.73546956]
[1747848677264,0.98015053,665.33,662.02,0.73546956]
[1747848677463,0.98015053,665.32,662.02,0.73546956]
[1747848677764,0.98015053,665.31,662.02,0.73546956]
[1747848678067,1.10744846,665.25,662.03,0.26206003]
[1747848678272,0.98015053,665.24,662.03,0.26206003]
[1747848678461,0.98015053,665.23,662.03,0.26206003]
[1747848678667,0.98015053,665.22,662.03,0.26206003]
[1747848678861,1.10744846,665.25,662.02,0.73546956]
[1747848679169,1.10744846,665.25,662.03,0.26203931]
[1747848679361,0.99636564,665.24,662.03,0.26203931]
[1747848679560,0.97968037,665.23,662.03,0.26203931]
[1747848679770,0.97968037,665.22,662.03,0.26203931]
[1747848680068,1.39948275,665.21,662.03,0.26203931]
[1747848680267,1.39948275,665.2,662.03,0.26203931]
[1747848680468,0.97968037,665.19,662.03,0.26203931]
[1747848680669,0.97968037,665.18,662.03,0.26203931]
[1747848680867,0.97968037,665.17,662.03,0.26203931]
[1747848681063,1.10744846,665.14,662.03,0.26203931]
[1747848681266,0.97968037,665.13,662.57,0.46950281]
[1747848682572,0.99636564,665.12,662.57,0.46950281]
[1747848682770,0.979499,665.11,662.57,0.46950281]
[1747848682971,0.979499,665.1,662.57,0.46950281]
[1747848683170,0.979499,665.09,662.57,0.46950281]
[1747848683365,0.979499,665.08,662.57,0.46950281]
[1747848683570,0.979499,665.07,662.57,0.46950281]
[1747848683873,1.10744846,664.98,662.25,0.26205411]
[1747848684073,0.979499,664.97,662.25,0.26205411]
[1747848684265,0.979499,664.96,662.25,0.26205411]
[1747848684470,0.979499,664.95,662.25,0.26205411]
[1747848684666,0.979499,664.94,662.25,0.26205411]
[1747848684870,0.979499,664.93,662.25,0.26205411]
[1747848685071,0.979499,664.92,661.98,0.46950281]
[1747848685271,0.99636564,664.93,661.98,0.46950281]
[1747848685470,0.99636564,664.93,662.25,0.26216664]
[1747848685674,0.99636564,664.93,661.98,0.46950281]
[1747848686273,0.99636564,664.93,661.32,0.46950281]
[1747848686469,0.99636564,664.93,661.99,0.26214591]
[1747848686673,1.10744846,665.25,661.32,0.46950281]
[1747848687375,0.97970794,665.24,661.32,0.46950281]
[1747848687576,0.9796361,665.23,661.89,0.26206891]
[1747848687774,0.9796361,665.22,661.89,0.26206891]
[1747848687974,1.9759138,665.21,661.89,0.26206891]
[1747848688170,0.9796361,665.2,661.32,0.46950281]
[1747848688375,0.9796361,665.19,661.32,0.46950281]
[1747848688576,0.9796361,665.18,661.32,0.46950281]
[1747848688771,0.9962777,665.21,661.32,0.46950281]
[1747848689278,0.9962777,665.21,662.49,0.46950281]
[1747848689778,1.10744846,665.58,662.49,0.46950281]
[1747848689987,0.98037299,665.57,662.49,0.46950281]
[1747848690184,0.98037299,665.56,662.49,0.46950281]
[1747848690380,0.98037299,665.55,662.49,0.46950281]
[1747848690583,0.98037299,665.54,662.49,0.46950281]
[1747848690784,0.98037299,665.53,662.49,0.46950281]
[1747848690982,1.97294606,665.52,662.49,0.46950281]
[1747848691181,0.98037299,665.51,662.49,0.46950281]
[1747848691382,0.98037299,665.5,662.49,0.46950281]
[1747848691580,0.98037299,665.49,662.49,0.46950281]
[1747848691783,0.98037299,665.49,661.89,0.26207878]
[1747848691784,0.98037299,665.48,662.21,0.46950281]
[1747848691978,0.98037299,665.47,662.21,0.46950281]
[1747848692283,0.98037299,665.46,662.21,0.46950281]
[1747848692483,0.98037299,665.45,662.21,0.46950281]
[1747848692679,2.08782145,665.44,662.21,0.46950281]
[1747848692874,1.10744846,665.44,662.21,0.46950281]
[1747848693787,0.99257307,665.43,662.3,0.46950281]
[1747848695784,1.10744846,665.93,663.71,0.36074329]
[1747848695991,0.98221612,665.92,663.71,0.36074329]
[1747848696289,0.98221612,665.91,663.71,0.36074329]
[1747848696585,0.98221612,665.9,663.71,0.36074329]
[1747848696786,0.98221612,665.89,663.71,0.36074329]
[1747848696985,0.98221612,665.88,663.71,0.36074329]
[1747848697182,0.98221612,665.87,663.71,0.36074329]
[1747848697382,1.97595393,665.86,663.71,0.36074329]
[1747848697582,0.99373781,665.86,663.71,0.36074329]
[1747848699989,0.99373781,665.85,663.0,0.73546956]
[1747848701688,0.99373781,666.15,663.0,0.73546956]
[1747848701885,0.98206315,666.14,663.0,0.73546956]
[1747848702086,0.99373781,666.15,663.0,0.73546956]
[1747848703488,0.99373781,666.14,663.0,0.73546956]
[1747848704488,0.99373781,666.13,663.0,0.73546956]
[1747848705393,0.98180522,666.12,663.0,0.73546956]
[1747848705593,0.98180522,666.11,663.0,0.73546956]
[1747848705790,0.98180522,666.1,663.0,0.73546956]
[1747848706090,0.98180522,666.09,663.0,0.73546956]
[1747848706385,0.99373781,666.1,663.0,0.73546956]
[1747848707186,0.99373781,666.09,663.0,0.73546956]
[1747848708093,0.99373781,666.08,663.0,0.73546956]
[1747848709694,1.10744846,666.26,663.0,0.73546956]
[1747848710789,0.97952772,666.25,663.0,0.73546956]
[1747848710994,1.10744846,666.26,663.0,0.73546956]
[1747848711192,0.97938552,666.25,663.0,0.73546956]
[1747848711393,0.97938552,666.24,663.46,0.73546956]
[1747848711596,0.97938552,666.23,663.46,0.73546956]
[1747848711792,0.97938552,666.22,663.46,0.73546956]
[1747848711993,0.97938552,666.21,663.46,0.73546956]
[1747848712192,0.99079717,666.25,663.46,0.73546956]
[1747848712389,0.9785064,666.24,663.46,0.73546956]
[1747848712593,0.99079717,666.25,663.46,0.73546956]
[1747848712894,1.96908473,666.24,663.46,0.73546956]
[1747848713094,0.97828756,666.23,663.46,0.73546956]
[1747848713296,0.97828756,666.22,663.46,0.73546956]
[1747848713495,0.97828756,666.21,663.46,0.73546956]
[1747848713702,0.97828756,666.2,663.46,0.73546956]
[1747848713894,0.97828756,666.19,663.46,0.73546956]
[1747848714088,0.99079717,666.24,663.46,0.73546956]
[1747848714793,0.99079717,666.23,663.46,0.73546956]
[1747848715397,1.10744846,666.45,663.46,0.73546956]
[1747848716999,1.10744846,666.88,663.46,0.73546956]
[1747848717204,0.97672974,666.87,663.46,0.73546956]
[1747848717402,0.97672974,666.86,663.46,0.73546956]
[1747848717602,0.97672974,666.85,663.46,0.73546956]
[1747848717804,0.97672974,666.84,663.46,0.73546956]
[1747848718003,0.97648777,666.83,663.46,0.73546956]
[1747848718205,0.98765841,666.82,663.46,0.73546956]
[1747848719905,0.98765841,666.81,663.46,0.73546956]
[1747848720815,1.10744846,667.08,663.46,0.73546956]
[1747848722411,0.98628529,667.07,664.44,0.35756176]
[1747848723516,1.10744846,667.41,664.44,0.35756176]
[1747848724710,0.97379882,667.4,664.44,0.35756176]
[1747848724908,0.97379882,667.39,664.44,0.35756176]
[1747848725107,1.10744846,667.41,664.44,0.35756176]
[1747848725108,0.97379882,667.38,664.44,0.35756176]
[1747848725312,0.97379882,667.37,664.44,0.35756176]
[1747848725511,0.97379882,667.36,664.44,0.35756176]
[1747848725711,0.97379882,667.35,664.56,0.35756176]
[1747848725915,0.98449649,667.4,664.56,0.35756176]
[1747848726210,0.97396284,667.39,664.56,0.35756176]
[1747848726412,0.98449649,667.4,664.56,0.35756176]
[1747848727010,0.98449649,667.39,664.56,0.35756176]
[1747848728111,1.45048106,667.81,663.73,0.73546956]
[1747848728112,1.10744846,667.7,664.7,0.35756176]
[1747848728312,0.97267209,667.69,664.7,0.35756176]
[1747848728509,0.97267209,667.68,664.7,0.35756176]
[1747848728714,0.97267209,667.67,664.7,0.35756176]
[1747848728914,0.97267209,667.66,664.7,0.35756176]
[1747848729119,0.97267209,667.65,664.7,0.35756176]
[1747848729319,0.97267209,667.64,664.7,0.35756176]
[1747848729509,0.97267209,667.63,664.7,0.35756176]
[1747848729811,0.97134738,667.62,664.7,0.35756176]
[1747848730011,0.97134738,667.61,664.7,0.35756176]
[1747848730218,0.97134738,667.6,664.7,0.35756176]
[1747848730416,0.97134738,667.59,664.7,0.35756176]
[1747848730621,1.10744846,667.39,664.29,0.35756176]
[1747848730813,0.97134738,667.38,664.29,0.35756176]
[1747848731010,1.10744846,667.39,664.29,0.35756176]
[1747848731616,0.97018149,667.38,664.29,0.35756176]
[1747848731813,0.97018149,667.37,664.29,0.35756176]
[1747848732013,0.97018149,667.36,664.29,0.35756176]
[1747848732212,0.97018149,667.35,664.29,0.35756176]
[1747848732410,0.96954513,667.34,664.29,0.35756176]
[1747848732715,0.96954513,667.33,664.29,0.35756176]
[1747848732911,0.96954513,667.32,664.29,0.35756176]
[1747848733215,0.96954513,667.31,664.29,0.35756176]
[1747848733410,0.96954513,667.3,664.06,0.26124361]
[1747848733612,0.96954513,667.29,664.06,0.26124361]
[1747848733814,0.96954513,667.28,664.06,0.26124361]
[1747848734010,0.96954513,667.27,664.06,0.26124361]
[1747848734215,0.96954513,667.26,664.06,0.26124361]
[1747848734417,0.96954513,667.25,664.06,0.26124361]
[1747848734718,0.98215346,667.31,664.06,0.26124361]
[1747848735017,0.98215346,667.24,664.06,0.26124361]
[1747848735919,0.98215346,667.23,664.28,0.35756176]
[1747848737417,0.98215346,667.22,664.28,0.35756176]
[1747848738012,0.96955786,667.21,664.28,0.35756176]
[1747848738216,0.98215346,667.22,664.28,0.35756176]
[1747848738217,0.96973904,667.2,664.28,0.35756176]
[1747848738418,0.98215346,667.22,664.28,0.35756176]
[1747848738618,0.98215346,667.19,664.11,0.35756176]
[1747848739520,1.10744846,667.45,664.11,0.35756176]
[1747848740920,0.9704222,667.44,664.11,0.35756176]
[1747848741117,0.9704222,667.43,664.51,0.35756176]
[1747848742024,0.97716067,667.42,664.51,0.35756176]
[1747848742221,0.9704222,667.41,664.51,0.35756176]
[1747848743625,1.10744846,667.18,664.24,0.35756176]
[1747848743824,0.9704222,667.17,664.24,0.35756176]
[1747848744521,1.10744846,667.18,664.24,0.35756176]
[1747848744924,1.95053338,667.17,664.24,0.35756176]
[1747848745119,0.97337271,667.16,664.24,0.35756176]
[1747848746724,1.10744846,667.08,664.45,0.35756176]
[1747848746927,0.97337271,667.07,664.45,0.35756176]
[1747848748029,0.97716067,667.06,664.45,0.35756176]
[1747848748231,0.97337271,667.05,664.45,0.35756176]
[1747848749425,0.97716067,667.04,664.51,0.35756176]
[1747848749624,0.97337271,667.03,664.51,0.35756176]
[1747848750531,0.97716067,667.02,664.51,0.35756176]
[1747848750722,0.97337271,667.01,664.51,0.35756176]
[1747848751130,0.97337271,667.0,664.51,0.35756176]
[1747848751329,0.97337271,666.99,664.51,0.35756176]
[1747848751528,0.97337271,666.98,664.51,0.35756176]
[1747848751729,1.10744846,666.83,664.43,0.35756176]
[1747848752028,0.97337271,666.82,664.43,0.35756176]
[1747848752229,0.97337271,666.81,664.43,0.35756176]
[1747848752429,0.97337271,666.8,664.43,0.35756176]
[1747848752630,0.97337271,666.79,664.43,0.35756176]
[1747848752831,0.97337271,666.78,664.43,0.35756176]
[1747848753237,0.97337271,666.77,664.43,0.35756176]
[1747848753446,0.97337271,666.76,664.43,0.35756176]
[1747848753626,0.97337271,666.75,664.43,0.35756176]
[1747848753834,0.97337271,666.74,664.43,0.35756176]
[1747848754031,0.98562908,666.73,664.43,0.35756176]
[1747848754327,0.98562908,666.72,664.43,0.35756176]
[1747848754530,0.98562908,666.71,664.76,0.35756176]
[1747848754732,0.98562908,666.7,664.76,0.35756176]
[1747848754936,0.98562908,666.69,664.76,0.35756176]
[1747848755234,0.97716067,666.73,664.76,0.35756176]
[1747848755835,1.10744846,666.74,664.76,0.35756176]
[1747848757632,1.10744846,667.1,665.13,0.35756176]
[1747848757935,0.99015075,667.09,665.13,0.35756176]
[1747848758236,0.99015075,667.08,665.13,0.35756176]
[1747848758436,1.10744846,667.1,665.13,0.35756176]
[1747848758628,0.99037287,667.09,665.13,0.35756176]
[1747848758831,0.99040453,667.08,665.13,0.35756176]
[1747848759136,1.98822387,667.07,665.13,0.35756176]
[1747848759330,0.99034406,667.06,665.13,0.35756176]
[1747848759735,0.99034406,667.05,665.13,0.35756176]
[1747848759938,0.99034406,667.04,665.13,0.35756176]
[1747848760138,0.99034406,667.03,665.13,0.35756176]
[1747848760338,0.99034406,667.02,665.13,0.35756176]
[1747848760541,1.10744846,666.98,665.2,0.35756176]
[1747848760734,0.99034406,666.97,665.2,0.35756176]
[1747848761239,0.99034406,666.96,665.2,0.35756176]
[1747848761438,0.99034406,666.95,665.2,0.35756176]
[1747848761634,0.99034406,666.94,665.2,0.35756176]
[1747848761838,0.99034406,666.93,665.2,0.35756176]
[1747848762034,0.99034406,666.92,665.2,0.35756176]
[1747848762235,0.99034406,666.91,665.2,0.35756176]
[1747848762438,0.99034406,666.9,665.2,0.35756176]
[1747848762635,1.10744846,666.79,664.88,0.35756176]
[1747848762835,0.99034406,666.78,664.88,0.35756176]
[1747848763035,0.99034406,666.77,664.88,0.35756176]
[1747848763238,0.99034406,666.76,664.88,0.35756176]
[1747848763436,0.99034406,666.75,664.88,0.35756176]
[1747848763637,0.99034406,666.74,664.88,0.35756176]
[1747848763837,0.99034406,666.73,664.88,0.35756176]
[1747848764040,1.98822387,666.72,664.88,0.35756176]
[1747848764242,0.99034406,666.71,664.88,0.35756176]
[1747848764442,0.99128194,666.7,664.88,0.35756176]
[1747848764635,0.99128194,666.69,664.88,0.35756176]
[1747848764934,0.99128194,666.68,664.88,0.35756176]
[1747848765136,0.99128194,666.67,664.88,0.35756176]
[1747848765337,0.99128194,666.66,664.88,0.35756176]
[1747848765643,0.99128194,666.65,665.36,0.35756176]
[1747848765843,0.99128194,666.64,665.36,0.35756176]
[1747848766051,0.99128194,666.63,665.36,0.35756176]
[1747848766245,0.99197933,666.62,665.36,0.35756176]
[1747848766441,0.99197933,666.61,665.36,0.35756176]
[1747848766640,0.99197933,666.6,665.36,0.35756176]
[1747848766841,0.99197933,666.59,665.36,0.35756176]
[1747848767043,0.99197933,666.58,665.36,0.35756176]
[1747848767341,0.99197933,666.57,665.36,0.35756176]
[1747848767538,0.99204314,666.56,665.36,0.35756176]
[1747848767739,0.99204314,666.55,665.36,0.35756176]
[1747848767944,0.99204314,666.54,665.36,0.35756176]
[1747848768140,0.99204314,666.53,665.36,0.35756176]
[1747848768344,1.10744846,666.49,664.79,0.46950281]
[1747848768545,0.99204314,666.48,664.79,0.46950281]
[1747848768847,0.99204314,666.47,664.79,0.46950281]
[1747848769046,0.99204314,666.46,664.79,0.46950281]
[1747848769246,0.99204314,666.45,664.79,0.46950281]
[1747848769443,1.98992295,666.44,664.79,0.46950281]
[1747848769752,0.99202363,666.43,664.79,0.46950281]
[1747848769952,0.99202363,666.42,664.79,0.46950281]
[1747848770149,0.99787981,666.44,664.79,0.46950281]
[1747848770150,0.99202363,666.41,664.79,0.46950281]
[1747848770347,0.99202363,666.4,664.79,0.46950281]